bitfinex/quotes_BTCUSD_20260125
["timestamp","ask_amount","ask_price","bid_price","bid_amount"]
[1769318151380,0.473323,89035.0,89024.0,0.01166937]
[1769318151708,3.188879,89039.0,89024.0,0.01166937]
[1769318151874,0.857569,89037.0,89024.0,0.01166937]
[1769318152069,0.631623,89035.0,89024.0,0.01166937]
[1769318152308,3.40381,89039.0,89024.0,0.01166937]
[1769318152474,0.904155,89037.0,89024.0,0.01166937]
[1769318152803,0.631634,89035.0,89024.0,0.01166937]
[1769318153011,3.422973,89039.0,89024.0,0.01166937]
[1769318153234,0.847093,89037.0,89024.0,0.01166937]
[1769318153517,0.631634,89035.0,89024.0,0.01166937]
[1769318153674,3.481918,89039.0,89024.0,0.01166937]
[1769318153880,0.620857,89037.0,89024.0,0.01166937]
[1769318154165,0.473334,89035.0,89024.0,0.01166937]
[1769318154331,3.202769,89039.0,89024.0,0.01166937]
[1769318154525,0.11244594,89038.0,89024.0,0.01166937]
[1769318154867,0.594342,89037.0,89024.0,0.01166937]
[1769318155017,0.11244594,89036.0,89024.0,0.01166937]
[1769318155220,0.473334,89035.0,89024.0,0.01166937]
[1769318155757,0.23697867,89040.0,89024.0,0.01166937]
[1769318155758,3.170942,89039.0,89024.0,0.01166937]
[1769318155903,0.03370299,89034.0,89024.0,0.01166937]
[1769318158724,0.03370299,89034.0,89023.0,0.87721048]
[1769318161940,0.03370299,89034.0,89021.0,0.41211096]
[1769318168723,0.03370299,89034.0,89018.0,0.82163319]
[1769318170146,0.03370299,89034.0,89018.0,1.1940194]
[1769318171878,0.03370299,89034.0,89019.0,0.00910482]
[1769318172680,0.03370299,89034.0,89019.0,0.83746342]
[1769318172882,0.03370299,89034.0,89019.0,0.8283586]
[1769318173092,0.03370299,89034.0,89020.0,0.01022652]
[1769318176475,0.03370299,89034.0,89020.0,0.01666331]
[1769318184876,0.66101839,89038.0,89020.0,0.01666331]
[1769318185093,1.541813,89037.0,89020.0,0.01666331]
[1769318186022,1.299769,89037.0,89020.0,0.82247832]
[1769318186223,1.299769,89037.0,89021.0,0.80581501]
[1769318186425,1.299769,89037.0,89022.0,0.01767673]
[1769318190363,4.852173,89044.0,89022.0,0.01767673]
[1769318190583,0.38254977,89039.0,89015.0,0.86163092]
[1769318190748,1.701688,89037.0,89015.0,0.86163092]
[1769318190936,0.38254977,89035.0,89015.0,0.86163092]
[1769318191133,0.38254977,89035.0,89015.0,0.38010111]
[1769318191445,0.38254977,89035.0,89016.0,0.86115604]
[1769318192099,0.96464256,89033.0,89016.0,0.86115604]
[1769318192616,0.99834555,89033.0,89016.0,0.86115604]
[1769318194340,0.99834555,89033.0,89016.0,1.22118727]
[1769318196739,0.96464256,89033.0,89016.0,1.22118727]
[1769318196963,0.03370299,89032.0,89016.0,1.22118727]
[1769318197117,0.01123292,89024.0,89015.0,0.00047488]
[1769318197318,0.0673969,89025.0,89015.0,0.00047488]
[1769318197319,0.01123279,89025.0,89015.0,0.00047488]
[1769318197629,0.01123292,89024.0,89015.0,0.00047488]
[1769318197949,0.01123267,89026.0,89015.0,0.00047488]
[1769318201568,0.13446056,89030.0,89015.0,0.00047488]
[1769318201768,0.3612558,89025.0,89015.0,0.00047488]
[1769318201972,0.3612558,89024.0,89015.0,0.00047488]
[1769318202209,0.841074,89023.0,89015.0,0.00047488]
[1769318202576,1.25849801,89019.0,89015.0,0.00047488]
[1769318203089,0.01123368,89018.0,89015.0,0.00047488]
[1769318206809,0.35173068,89016.0,89015.0,0.00047488]
[1769318207050,1.19280468,89016.0,89015.0,0.00047488]
[1769318209032,0.01123368,89018.0,89015.0,0.00047488]
[1769318209888,0.3612558,89021.0,89015.0,0.00047488]
[1769318211173,1.2023298,89021.0,89015.0,0.00047488]
[1769318213102,0.3612558,89021.0,89015.0,0.00047488]
[1769318213461,0.01912643,89022.0,89015.0,0.00047488]
[1769318214654,0.86020043,89022.0,89015.0,0.00047488]
[1769318215533,0.3612558,89021.0,89004.0,0.17234368]
[1769318215680,0.841074,89020.0,89004.0,0.17234368]
[1769318216458,0.0112338,89017.0,89004.0,0.17234368]
[1769318217012,0.01123393,89016.0,89004.0,0.17234368]
[1769318217411,0.0112338,89017.0,89004.0,0.17234368]
[1769318218718,0.0112338,89017.0,89004.0,0.53237491]
[1769318219868,0.01123368,89018.0,89004.0,0.53237491]
[1769318220066,0.01123368,89018.0,89006.0,0.36003123]
[1769318220270,0.01123368,89018.0,89007.0,0.01552298]
[1769318220836,0.01170818,89021.0,89007.0,0.01552298]
[1769318221028,0.01170818,89021.0,89010.0,0.84290395]
[1769318221193,0.01170818,89021.0,89011.0,0.375579]
[1769318221529,0.01170818,89021.0,89011.0,0.36003123]
[1769318222087,0.00047488,89021.0,89011.0,0.36003123]
[1769318222930,0.00047488,89021.0,89012.0,0.01058669]
[1769318223137,0.00047488,89021.0,89012.0,0.01702996]
[1769318269261,1.12441994,89028.0,89012.0,0.01702996]
[1769318269385,2.724217,89027.0,89012.0,0.01702996]
[1769318269615,2.709174,89027.0,89012.0,0.01702996]
[1769318274459,2.657045,89026.0,89012.0,0.01702996]
[1769318274771,2.641337,89026.0,89012.0,0.01702996]
[1769318276061,2.559348,89026.0,89012.0,0.01702996]
[1769318279980,0.85246515,89027.0,89012.0,0.01702996]
[1769318280183,2.658742,89026.0,89012.0,0.01702996]
[1769318280619,2.558742,89026.0,89012.0,0.01702996]
[1769318281496,0.11237187,89025.0,89012.0,0.01702996]
[1769318281702,0.11237187,89024.0,89012.0,0.01702996]
[1769318281871,0.11237187,89023.0,89012.0,0.01702996]
[1769318282072,0.11237187,89022.0,89012.0,0.01702996]
[1769318282258,2.624272,89025.0,89012.0,0.01702996]
[1769318282464,0.11237134,89024.0,89012.0,0.01702996]
[1769318282642,0.11237134,89023.0,89012.0,0.01702996]
[1769318282849,0.11237134,89022.0,89012.0,0.01702996]
[1769318283049,2.904272,89025.0,89012.0,0.01702996]
[1769318283257,0.11237134,89024.0,89012.0,0.01702996]
[1769318283480,0.11237134,89023.0,89012.0,0.01702996]
[1769318283675,0.11237134,89022.0,89012.0,0.01702996]
[1769318283894,2.624272,89025.0,89012.0,0.01702996]
[1769318284105,0.11237156,89024.0,89012.0,0.01702996]
[1769318284302,0.11237156,89023.0,89012.0,0.01702996]
[1769318284643,0.11237156,89022.0,89012.0,0.01702996]
[1769318284930,2.624272,89025.0,89012.0,0.01702996]
[1769318285225,2.687076,89026.0,89012.0,0.01702996]
[1769318285380,2.604944,89026.0,89012.0,0.01702996]
[1769318285824,2.504944,89026.0,89012.0,0.01702996]
[1769318292562,2.74184,89025.0,89012.0,0.01702996]
[1769318292707,0.83313119,89025.0,89007.0,0.01715791]
[1769318297264,0.112371,89024.0,89007.0,0.01715791]
[1769318300675,0.112371,89024.0,89008.0,0.01715771]
[1769318302403,0.83313119,89025.0,89008.0,0.01715771]
[1769318302610,0.11237106,89024.0,89008.0,0.01715771]
[1769318325401,0.11237106,89024.0,89008.0,0.3807792]
[1769318325745,0.11237106,89024.0,89008.0,0.36362149]
[1769318327850,0.11237106,89024.0,89009.0,0.01072517]
[1769318337105,0.11238556,89023.0,89009.0,0.01072517]
[1769318337307,0.11238556,89022.0,89009.0,0.01072517]
[1769318337509,0.11238556,89021.0,89009.0,0.01072517]
[1769318337709,0.83313119,89025.0,89009.0,0.01072517]
[1769318337916,0.11238567,89024.0,89009.0,0.01072517]
[1769318341268,0.81416149,89023.0,89009.0,0.01072517]
[1769318341470,0.11238567,89022.0,89009.0,0.01072517]
[1769318342429,1.30932099,89022.0,89009.0,0.01072517]
[1769318342631,0.11238567,89021.0,89009.0,0.01072517]
[1769318343004,0.11238567,89021.0,88975.0,0.35247948]
[1769318343005,4.78459095,89018.0,88975.0,0.35247948]
[1769318343217,0.00058769,89019.0,88974.0,0.04496]
[1769318343218,0.80435637,89013.0,88978.0,0.80053488]
[1769318343389,0.34412866,89007.0,88982.0,0.80053488]
[1769318343590,3.4169,89005.0,88985.0,0.35247948]
[1769318343768,0.01123595,89000.0,88986.0,0.35247948]
[1769318343972,0.01123582,89001.0,88986.0,1.15301436]
[1769318344189,0.0112357,89002.0,88986.0,1.15301436]
[1769318344596,0.01123582,89001.0,88986.0,1.15301436]
[1769318345003,0.01130507,89001.0,88986.0,1.15301436]
[1769318345597,0.00058769,89000.0,88986.0,1.15301436]
[1769318346115,0.0112357,88999.0,88986.0,1.15301436]
[1769318346804,0.0114067,88999.0,88986.0,1.15301436]
[1769318347195,0.000171,88999.0,88986.0,0.35247948]
[1769318347396,0.0114067,88998.0,88981.0,0.35247948]
[1769318347623,0.0114067,88998.0,88976.0,0.17256]
[1769318347624,0.34412866,88997.0,88976.0,0.17256]
[1769318347833,0.80435637,88995.0,88977.0,0.00908577]
[1769318348023,0.01123683,88993.0,88977.0,0.00908577]
[1769318348220,0.81559295,88995.0,88977.0,0.80962065]
[1769318348425,0.00058769,88994.0,88980.0,0.35247948]
[1769318348867,0.01123709,88991.0,88980.0,0.35247948]
[1769318350290,0.01123709,88990.0,88979.0,0.80053488]
[1769318350643,0.01123709,88990.0,88976.0,0.17256]
[1769318351069,0.30684752,88989.0,88976.0,0.17256]
[1769318357494,0.75985865,88988.0,88976.0,0.17256]
[1769318357723,0.67139355,88989.0,88976.0,0.17256]
[1769318357724,0.36454603,88987.0,88976.0,0.1671675]
[1769318357937,1.12440468,88986.0,88976.0,0.1671675]
[1769318358069,1.12440468,88986.0,88976.0,0.15929543]
[1769318358690,1.12440468,88986.0,88974.0,0.04496]
[1769318359670,1.12440468,88986.0,88969.0,0.36302079]
[1769318360616,0.30684752,88985.0,88969.0,0.36302079]
[1769318361212,0.30684752,88985.0,88970.0,0.36302079]
[1769318362141,0.30684752,88985.0,88971.0,0.78139378]
[1769318369306,0.15639971,88985.0,88971.0,0.78139378]
[1769318373183,0.16712499,88985.0,88971.0,0.78139378]
[1769318374426,0.16712499,88985.0,88970.0,0.36302079]
[1769318375273,0.01072528,88985.0,88970.0,0.36302079]
[1769318375808,0.01072528,88985.0,88970.0,1.15807093]
[1769318376010,0.01072528,88986.0,88970.0,1.15807093]
[1769318376819,0.62541476,88987.0,88970.0,1.15807093]
[1769318377317,0.15639971,88985.0,88970.0,1.15807093]
[1769318384792,0.15639971,88985.0,88971.0,0.01012462]
[1769318386853,0.11237572,88984.0,88971.0,0.01012462]
[1769318387866,0.11237572,88984.0,88974.0,0.79505014]
[1769318388031,0.15639971,88985.0,88977.0,0.36181584]
[1769318388231,0.15639971,88985.0,88978.0,0.01038204]
[1769318390517,0.15639971,88985.0,88979.0,0.01038191]
[1769318390795,0.15639971,88985.0,88973.0,0.37219774]
[1769318391019,0.15639971,88985.0,88973.0,0.36181584]
[1769318392264,0.561518,88991.0,88973.0,0.36181584]
[1769318392464,0.452482,88989.0,88973.0,0.36181584]
[1769318392782,0.449275,88987.0,88973.0,0.36181584]
[1769318392981,0.155141,88990.0,88973.0,0.36181584]
[1769318393154,0.123687,88988.0,88973.0,0.36181584]
[1769318393369,0.1123882,88987.0,88973.0,0.36181584]
[1769318393567,0.794017,88990.0,88973.0,0.36181584]
[1769318393787,0.443687,88988.0,88973.0,0.36181584]
[1769318393989,0.11238425,88987.0,88973.0,0.36181584]
[1769318394189,0.794017,88990.0,88973.0,0.36181584]
[1769318394387,0.15639971,88987.0,88973.0,0.36181584]
[1769318397587,0.15639971,88987.0,88974.0,0.36181584]
[1769318400564,0.15639971,88987.0,88975.0,0.01234819]
[1769318402808,0.15639971,88987.0,88974.0,0.36181584]
[1769318408302,0.15639971,88987.0,88972.0,0.0001024]
[1769318408448,0.11234355,88986.0,88972.0,0.0001024]
[1769318408886,0.78103226,88984.0,88972.0,0.0001024]
[1769318409592,0.78103226,88982.0,88972.0,0.0001024]
[1769318409754,0.78103226,88980.0,88972.0,0.0001024]
[1769318410390,0.36585715,88981.0,88972.0,0.0001024]
[1769318410591,0.3770955,88981.0,88972.0,0.0001024]
[1769318411122,0.01123848,88980.0,88972.0,0.0001024]
[1769318411326,0.15639971,88979.0,88972.0,0.0001024]
[1769318426327,0.36585715,88981.0,88972.0,0.0001024]
[1769318428173,0.3770955,88981.0,88972.0,0.0001024]
[1769318428368,0.15639971,88980.0,88972.0,0.0001024]
[1769318428551,0.16763819,88980.0,88972.0,0.0001024]
[1769318428954,0.15639971,88980.0,88972.0,0.0001024]
[1769318432879,0.74542216,88985.0,88972.0,0.0001024]
[1769318433653,0.0112381,88983.0,88972.0,0.0001024]
[1769318437441,0.01123822,88982.0,88972.0,0.0001024]
[1769318437649,0.0112381,88983.0,88972.0,0.0001024]
[1769318437772,0.0112381,88983.0,88972.0,1.18052899]
[1769318437971,0.01123822,88982.0,88972.0,0.0001024]
[1769318441633,0.0112381,88983.0,88972.0,0.0001024]
[1769318442783,0.01123822,88982.0,88972.0,0.0001024]
[1769318443362,0.01123835,88981.0,88972.0,0.0001024]
[1769318443570,0.01123848,88980.0,88972.0,0.0001024]
[1769318443969,0.01123835,88981.0,88972.0,0.0001024]
[1769318445683,0.12359384,88982.0,88972.0,0.0001024]
[1769318445898,0.01123822,88982.0,88972.0,0.0001024]
[1769318446514,0.12359364,88983.0,88972.0,0.0001024]
[1769318447757,0.11235554,88983.0,88972.0,0.0001024]
[1769318447903,0.11235554,88982.0,88972.0,0.0001024]
[1769318448084,0.01123797,88984.0,88972.0,0.0001024]
[1769318451152,0.0112381,88983.0,88972.0,0.0001024]
[1769318452781,0.01123797,88984.0,88972.0,0.0001024]
[1769318452992,0.11235513,88985.0,88972.0,0.0001024]
[1769318455005,0.01123797,88984.0,88972.0,0.0001024]
[1769318456318,0.0112381,88983.0,88972.0,0.0001024]
[1769318456931,0.01123822,88982.0,88972.0,0.0001024]
[1769318457249,0.0112381,88983.0,88972.0,0.0001024]
[1769318457467,0.12359323,88983.0,88972.0,0.0001024]
[1769318457671,0.11235513,88982.0,88972.0,0.0001024]
[1769318457817,0.01123797,88984.0,88972.0,0.0001024]
[1769318458017,0.12359001,88985.0,88972.0,0.0001024]
[1769318458980,0.11235217,88985.0,88972.0,0.0001024]
[1769318459185,0.11235217,88984.0,88973.0,0.81572674]
[1769318459334,0.11235217,88983.0,88974.0,0.37601265]
[1769318459518,0.01123784,88985.0,88974.0,0.37601265]
[1769318459519,0.11235217,88982.0,88974.0,0.36469985]
[1769318459719,0.01123784,88985.0,88974.0,0.36469985]
[1769318460760,0.01123784,88985.0,88975.0,0.01244082]
[1769318461175,0.01123797,88984.0,88975.0,0.01244082]
[1769318463731,0.0112381,88983.0,88974.0,0.01244082]
[1769318465347,0.12359059,88984.0,88974.0,0.01244082]
[1769318465971,0.11235262,88983.0,88974.0,0.01244082]
[1769318466171,0.11235262,88982.0,88974.0,0.01244082]
[1769318466356,0.01123797,88984.0,88974.0,0.01244082]
[1769318467357,0.0112381,88983.0,88974.0,0.01244082]
[1769318467956,0.34677884,88990.0,88974.0,0.01244082]
[1769318468155,2.282434,88989.0,88974.0,0.01244082]
[1769318468545,0.01123797,88984.0,88974.0,0.01244082]
[1769318469582,0.0112381,88983.0,88974.0,0.01244082]
[1769318470156,0.01123797,88984.0,88974.0,0.01244082]
[1769318471935,0.01123797,88984.0,88974.0,0.01892388]
[1769318473773,0.01123784,88985.0,88974.0,0.01892388]
[1769318474338,0.01123772,88986.0,88974.0,0.01892388]
[1769318484285,0.01011387,88986.0,88974.0,0.01892388]
[1769318487979,1.00133708,88990.0,88974.0,0.01892388]
[1769318488161,2.466683,88989.0,88974.0,0.01892388]
[1769318489840,2.213605,88989.0,88974.0,1.17300964]
[1769318490043,2.213605,88989.0,88974.0,1.15408576]
[1769318490238,2.213605,88989.0,88975.0,0.01259731]
[1769318492166,2.213605,88989.0,88975.0,0.01910363]
[1769318493508,2.687138,88989.0,88975.0,0.01910363]
[1769318493688,2.668798,88989.0,88975.0,0.01910363]
[1769318499978,2.655316,88987.0,88975.0,0.01910363]
[1769318500160,0.11232965,88986.0,88975.0,0.01910363]
[1769318500691,1.00133708,88990.0,88975.0,0.01910363]
[1769318500891,2.655316,88988.0,88975.0,0.01910363]
[1769318501095,0.11232942,88987.0,88975.0,0.01910363]
[1769318501267,0.11232942,88986.0,88975.0,0.01910363]
[1769318501578,2.683645,88989.0,88975.0,0.01910363]
[1769318501795,0.11232906,88988.0,88975.0,0.01910363]
[1769318501996,2.655316,88987.0,88975.0,0.01910363]
[1769318502196,0.11232906,88986.0,88975.0,0.01910363]
[1769318502635,2.670819,88988.0,88975.0,0.01910363]
[1769318502812,0.11232889,88987.0,88975.0,0.01910363]
[1769318503092,0.11232889,88986.0,88975.0,0.01910363]
[1769318503511,2.675462,88989.0,88975.0,0.01910363]
[1769318503715,2.75750396,88988.0,88975.0,0.01910363]
[1769318503930,0.11232896,88987.0,88975.0,0.01910363]
[1769318504136,0.11232896,88986.0,88975.0,0.01910363]
[1769318504337,1.00133708,88990.0,88975.0,0.01910363]
[1769318504549,2.663471,88988.0,88975.0,0.01910363]
[1769318504753,0.11232885,88987.0,88975.0,0.01910363]
[1769318504959,0.11232885,88986.0,88975.0,0.01910363]
[1769318505169,2.663471,88988.0,88975.0,0.01910363]
[1769318505353,0.1123253,88987.0,88975.0,0.01910363]
[1769318505488,0.1123253,88986.0,88975.0,0.01910363]
[1769318505701,2.837514,88989.0,88975.0,0.01910363]
[1769318505956,2.645175,88987.0,88975.0,0.01910363]
[1769318506159,1.00133708,88990.0,88975.0,0.01910363]
[1769318506316,2.562785,88988.0,88975.0,0.01910363]
[1769318506522,0.11228918,88987.0,88975.0,0.01910363]
[1769318506721,2.59198,88989.0,88975.0,0.01910363]
[1769318506923,2.562785,88987.0,88975.0,0.01910363]
[1769318507127,2.594025,88989.0,88975.0,0.01910363]
[1769318507337,2.562785,88987.0,88975.0,0.01910363]
[1769318507533,2.316267,88989.0,88975.0,0.01910363]
[1769318507807,2.302785,88987.0,88975.0,0.01910363]
[1769318507986,0.11228984,88986.0,88975.0,0.01910363]
[1769318508165,1.00133708,88990.0,88975.0,0.01910363]
[1769318508365,2.642785,88988.0,88975.0,0.01910363]
[1769318508561,0.11229088,88987.0,88975.0,0.01910363]
[1769318508766,0.11229088,88986.0,88975.0,0.01910363]
[1769318509112,2.674445,88989.0,88975.0,0.01910363]
[1769318509316,1.00133708,88990.0,88975.0,0.01910363]
[1769318509317,2.302774,88987.0,88975.0,0.01910363]
[1769318509538,0.11229089,88986.0,88975.0,0.01910363]
[1769318509744,2.33151,88989.0,88975.0,0.01910363]
[1769318509990,2.302774,88987.0,88975.0,0.01910363]
[1769318510210,0.11229167,88986.0,88975.0,0.01910363]
[1769318510400,2.412245,88989.0,88975.0,0.01910363]
[1769318510600,0.11229237,88988.0,88975.0,0.01910363]
[1769318510758,0.01123759,88987.0,88975.0,0.01910363]
[1769318510962,0.12352996,88987.0,88975.0,0.01910363]
[1769318511380,0.01123772,88986.0,88975.0,0.01910363]
[1769318511762,0.12352996,88987.0,88975.0,0.01910363]
[1769318512549,0.11229237,88986.0,88975.0,0.01910363]
[1769318512761,0.01123759,88987.0,88975.0,0.01910363]
[1769318529336,1.629083,88988.0,88975.0,0.01910363]
[1769318529520,0.11228185,88987.0,88975.0,0.01910363]
[1769318529721,0.11228185,88986.0,88975.0,0.01910363]
[1769318529921,1.00133708,88990.0,88975.0,0.01910363]
[1769318530123,2.41216,88988.0,88975.0,0.01910363]
[1769318530337,1.00133708,88990.0,88975.0,0.01910363]
[1769318530338,0.11231572,88987.0,88975.0,0.01910363]
[1769318530537,0.11231572,88986.0,88975.0,0.01910363]
[1769318530743,2.480319,88989.0,88975.0,0.01910363]
[1769318530914,2.396063,88987.0,88975.0,0.01910363]
[1769318531114,0.11231549,88986.0,88975.0,0.01910363]
[1769318531314,0.11231549,88985.0,88975.0,0.01910363]
[1769318531516,2.160554,88989.0,88975.0,0.01910363]
[1769318531736,2.076298,88987.0,88975.0,0.01910363]
[1769318531970,0.11231549,88986.0,88975.0,0.01910363]
[1769318532173,0.11231549,88985.0,88975.0,0.01910363]
[1769318532375,2.500554,88989.0,88975.0,0.01910363]
[1769318532594,2.416298,88987.0,88975.0,0.01910363]
[1769318532792,0.11230742,88986.0,88975.0,0.01910363]
[1769318533254,0.11230742,88985.0,88975.0,0.01910363]
[1769318533403,1.00133708,88990.0,88975.0,0.01910363]
[1769318533621,2.076298,88988.0,88975.0,0.01910363]
[1769318533790,0.11230446,88987.0,88975.0,0.01910363]
[1769318533986,0.11230446,88986.0,88975.0,0.01910363]
[1769318534191,0.11230446,88985.0,88975.0,0.01910363]
[1769318534412,2.500614,88989.0,88975.0,0.01910363]
[1769318534612,2.416358,88987.0,88975.0,0.01910363]
[1769318534840,0.11230411,88986.0,88975.0,0.01910363]
[1769318535041,1.00133708,88990.0,88975.0,0.01910363]
[1769318535242,2.416358,88988.0,88975.0,0.01910363]
[1769318535451,2.500614,88989.0,88975.0,0.01910363]
[1769318535593,2.416358,88987.0,88975.0,0.01910363]
[1769318535806,2.480319,88989.0,88975.0,0.01910363]
[1769318536006,2.074513,88987.0,88975.0,0.01910363]
[1769318536206,2.158769,88989.0,88975.0,0.01910363]
[1769318536940,2.074513,88987.0,88975.0,0.01910363]
[1769318537135,0.11227319,88986.0,88975.0,0.01910363]
[1769318537333,2.498769,88989.0,88975.0,0.01910363]
[1769318537531,2.414513,88987.0,88975.0,0.01910363]
[1769318537744,0.11228548,88986.0,88975.0,0.01910363]
[1769318537920,2.158792,88989.0,88975.0,0.01910363]
[1769318538122,2.074536,88987.0,88975.0,0.01910363]
[1769318538429,0.1122857,88986.0,88975.0,0.01910363]
[1769318538632,2.158769,88989.0,88975.0,0.01910363]
[1769318538881,2.074513,88987.0,88975.0,0.01910363]
[1769318539058,0.11228601,88986.0,88975.0,0.01910363]
[1769318539620,2.498769,88989.0,88975.0,0.01910363]
[1769318539915,2.396063,88987.0,88975.0,0.01910363]
[1769318540065,0.11228591,88986.0,88975.0,0.01910363]
[1769318540260,1.00133708,88990.0,88975.0,0.01910363]
[1769318540485,2.413338,88988.0,88975.0,0.01910363]
[1769318540690,0.11228595,88987.0,88975.0,0.01910363]
[1769318541166,0.11228595,88986.0,88975.0,0.01910363]
[1769318541502,2.180177,88989.0,88975.0,0.01910363]
[1769318541728,2.073383,88987.0,88975.0,0.01910363]
[1769318542002,0.11228632,88986.0,88975.0,0.01910363]
[1769318542162,2.416964,88988.0,88975.0,0.01910363]
[1769318542365,0.11228623,88987.0,88975.0,0.01910363]
[1769318542595,0.11228623,88986.0,88975.0,0.01910363]
[1769318542799,0.11228623,88985.0,88975.0,0.01910363]
[1769318543020,1.00133708,88990.0,88975.0,0.01910363]
[1769318543021,2.182451,88989.0,88975.0,0.01910363]
[1769318543147,0.11228617,88988.0,88975.0,0.01910363]
[1769318543363,2.075683,88987.0,88975.0,0.01910363]
[1769318543563,0.11228617,88986.0,88975.0,0.01910363]
[1769318543913,0.11228617,88985.0,88975.0,0.01910363]
[1769318544116,2.922438,88989.0,88975.0,0.01910363]
[1769318544349,2.815683,88987.0,88975.0,0.01910363]
[1769318544552,0.11228635,88986.0,88975.0,0.01910363]
[1769318544698,1.00133708,88990.0,88975.0,0.01910363]
[1769318544903,2.475683,88988.0,88975.0,0.01910363]
[1769318545105,0.11229089,88987.0,88975.0,0.01910363]
[1769318545327,0.11229089,88986.0,88975.0,0.01910363]
[1769318545537,2.922354,88989.0,88975.0,0.01910363]
[1769318545762,2.815599,88987.0,88975.0,0.01910363]
[1769318545891,0.11229071,88986.0,88975.0,0.01910363]
[1769318546296,2.582354,88989.0,88975.0,0.01910363]
[1769318546608,2.475599,88987.0,88975.0,0.01910363]
[1769318546826,0.11229071,88986.0,88975.0,0.01910363]
[1769318547031,2.922354,88989.0,88975.0,0.01910363]
[1769318547208,2.815599,88987.0,88975.0,0.01910363]
[1769318547411,0.11229063,88986.0,88975.0,0.01910363]
[1769318547631,2.922354,88989.0,88975.0,0.01910363]
[1769318547865,2.475599,88987.0,88975.0,0.01910363]
[1769318548059,0.11229067,88986.0,88975.0,0.01910363]
[1769318548281,2.579082,88989.0,88975.0,0.01910363]
[1769318548478,2.471631,88987.0,88975.0,0.01910363]
[1769318548662,0.11229059,88986.0,88975.0,0.01910363]
[1769318548893,1.00133708,88990.0,88975.0,0.01910363]
[1769318549160,2.811631,88988.0,88975.0,0.01910363]
[1769318549366,0.11229014,88987.0,88975.0,0.01910363]
[1769318549571,0.11229014,88986.0,88975.0,0.01910363]
[1769318549769,2.918181,88989.0,88975.0,0.01910363]
[1769318549926,0.11229009,88988.0,88975.0,0.01910363]
[1769318550134,2.471426,88987.0,88975.0,0.01910363]
[1769318550352,0.11229009,88986.0,88975.0,0.01910363]
[1769318550533,2.578181,88989.0,88975.0,0.01910363]
[1769318550731,2.811426,88987.0,88975.0,0.01910363]
[1769318550956,0.11229035,88986.0,88975.0,0.01910363]
[1769318551268,2.918181,88989.0,88975.0,0.01910363]
[1769318551936,2.578181,88989.0,88975.0,0.01910363]
[1769318558869,0.78221232,88990.0,88975.0,0.01910363]
[1769318558993,2.597581,88988.0,88975.0,0.01910363]
[1769318559196,2.681837,88989.0,88975.0,0.01910363]
[1769318560947,2.582977,88989.0,88975.0,0.01910363]
[1769318561096,0.11228963,88988.0,88975.0,0.01910363]
[1769318561294,2.492737,88987.0,88975.0,0.01910363]
[1769318561548,0.11228963,88986.0,88975.0,0.01910363]
[1769318561708,2.832737,88988.0,88975.0,0.01910363]
[1769318561914,0.78221232,88990.0,88975.0,0.01910363]
[1769318561915,0.11228962,88987.0,88975.0,0.01910363]
[1769318562136,0.11228962,88986.0,88975.0,0.01910363]
[1769318562309,2.916993,88989.0,88975.0,0.01910363]
[1769318562629,2.492737,88987.0,88975.0,0.01910363]
[1769318562832,0.11228923,88986.0,88975.0,0.01910363]
[1769318562993,0.78221232,88990.0,88975.0,0.01910363]
[1769318563231,2.832737,88988.0,88975.0,0.01910363]
[1769318563434,0.11228931,88987.0,88975.0,0.01910363]
[1769318563635,0.11228931,88986.0,88975.0,0.01910363]
[1769318563840,2.576993,88989.0,88975.0,0.01910363]
[1769318564041,2.492737,88987.0,88975.0,0.01910363]
[1769318564241,0.11228942,88986.0,88975.0,0.01910363]
[1769318564476,2.576993,88989.0,88975.0,0.01910363]
[1769318564653,2.832737,88987.0,88975.0,0.01910363]
[1769318564864,0.11228959,88988.0,88975.0,0.01910363]
[1769318564865,0.11228959,88986.0,88975.0,0.01910363]
[1769318565191,2.901546,88989.0,88975.0,0.01910363]
[1769318565390,2.81729,88987.0,88975.0,0.01910363]
[1769318565589,0.1122975,88986.0,88975.0,0.01910363]
[1769318565742,0.1122975,88989.0,88975.0,0.01910363]
[1769318565943,2.47729,88987.0,88975.0,0.01910363]
[1769318566147,0.11229725,88986.0,88975.0,0.01910363]
[1769318566347,0.78221232,88990.0,88975.0,0.01910363]
[1769318566348,2.561546,88989.0,88975.0,0.01910363]
[1769318566551,2.834524,88987.0,88975.0,0.01910363]
[1769318566754,0.11231348,88986.0,88975.0,0.01910363]
[1769318567003,2.918454,88989.0,88975.0,0.01910363]
[1769318567165,2.81729,88987.0,88975.0,0.01910363]
[1769318567367,0.11231348,88986.0,88975.0,0.01910363]
[1769318567583,2.920478,88989.0,88975.0,0.01910363]
[1769318567807,2.47729,88987.0,88975.0,0.01910363]
[1769318567971,0.11231357,88986.0,88975.0,0.01910363]
[1769318568172,2.577494,88989.0,88975.0,0.01910363]
[1769318568373,2.47729,88987.0,88975.0,0.01910363]
[1769318568568,0.1123136,88986.0,88975.0,0.01910363]
[1769318568771,0.1123136,88985.0,88975.0,0.01910363]
[1769318569072,2.84149,88989.0,88975.0,0.01910363]
[1769318569268,2.757234,88987.0,88975.0,0.01910363]
[1769318569475,0.1123136,88986.0,88975.0,0.01910363]
[1769318569683,0.1123136,88985.0,88975.0,0.01910363]
[1769318569886,2.477381,88988.0,88975.0,0.01910363]
[1769318570115,0.11231348,88987.0,88975.0,0.01910363]
[1769318570317,0.11231348,88986.0,88975.0,0.01910363]
[1769318570521,2.477381,88988.0,88975.0,0.01910363]
[1769318570522,0.78221232,88990.0,88975.0,0.01910363]
[1769318570706,2.611489,88988.0,88975.0,0.01910363]
[1769318570888,0.11231373,88987.0,88975.0,0.01910363]
[1769318571220,0.11231373,88986.0,88975.0,0.01910363]
[1769318571402,0.11231373,88985.0,88975.0,0.01910363]
[1769318571581,2.699578,88989.0,88975.0,0.01910363]
[1769318571785,0.78221232,88990.0,88975.0,0.01910363]
[1769318571786,2.476052,88987.0,88975.0,0.01910363]
[1769318572008,0.11231364,88986.0,88975.0,0.01910363]
[1769318572208,0.78221232,88990.0,88975.0,0.01910363]
[1769318572209,0.11231364,88985.0,88975.0,0.01910363]
[1769318572415,2.476052,88988.0,88975.0,0.01910363]
[1769318572596,0.11231392,88987.0,88975.0,0.01910363]
[1769318572795,0.11231392,88986.0,88975.0,0.01910363]
[1769318572998,0.11231392,88985.0,88975.0,0.01910363]
[1769318573348,2.576852,88989.0,88975.0,0.01910363]
[1769318573550,0.11231425,88988.0,88975.0,0.01910363]
[1769318573751,2.476052,88987.0,88975.0,0.01910363]
[1769318573899,0.11231425,88986.0,88975.0,0.01910363]
[1769318574298,0.11231425,88985.0,88975.0,0.01910363]
[1769318574485,2.410701,88989.0,88975.0,0.01910363]
[1769318574690,2.533802,88987.0,88975.0,0.01910363]
[1769318574890,0.11231552,88986.0,88975.0,0.01910363]
[1769318575121,0.11231552,88985.0,88975.0,0.01910363]